[Event "Late-Titled-Tuesday-Blitz-January-23-2024"]
[Site "Chess.com"]
[Date "2024.01.23"]
[Round "2"]
[White "CarlosjPineror"]
[Black "OparinGrigoriy"]
[Result "0-1"]
[WhiteElo "2608"]
[BlackElo "3014"]
[TimeControl "180+1"]
[EndTime "14:17:06 PST"]
[Termination "OparinGrigoriy won by resignation"]

1. d4 {[%clk 0:02:59.4]} 1... f5 {[%clk 0:02:59.5]} 2. Nf3 {[%clk 0:02:58.9]}
2... Nf6 {[%clk 0:03:00.1]} 3. g3 {[%clk 0:02:59.6]} 3... g6 {[%clk 0:03:00.3]}
4. Bg2 {[%clk 0:03:00.5]} 4... Bg7 {[%clk 0:03:00.9]} 5. O-O {[%clk 0:03:01.3]}
5... d6 {[%clk 0:03:01.4]} 6. c4 {[%clk 0:03:02]} 6... O-O {[%clk 0:03:02]} 7.
d5 {[%clk 0:03:02.6]} 7... e5 {[%clk 0:02:51.8]} 8. dxe6 {[%clk 0:02:59.2]} 8...
Na6 {[%clk 0:02:52]} 9. Nd4 {[%clk 0:02:47.8]} 9... Nc5 {[%clk 0:02:52]} 10. b3
{[%clk 0:02:42.3]} 10... Nfe4 {[%clk 0:02:50.1]} 11. Bb2 {[%clk 0:02:40.7]}
11... Qe7 {[%clk 0:02:48.3]} 12. Nd2 {[%clk 0:02:35.6]} 12... Ng5 {[%clk
0:02:37.9]} 13. Rb1 {[%clk 0:02:25.5]} 13... a5 {[%clk 0:02:35.3]} 14. Qc2
{[%clk 0:02:14.2]} 14... Ngxe6 {[%clk 0:02:34.5]} 15. Nxe6 {[%clk 0:02:13.9]}
15... Bxe6 {[%clk 0:02:35.4]} 16. e3 {[%clk 0:02:06.5]} 16... Rae8 {[%clk
0:02:28.8]} 17. Rfd1 {[%clk 0:02:02.2]} 17... b6 {[%clk 0:02:24.9]} 18. a3
{[%clk 0:01:55.7]} 18... g5 {[%clk 0:02:22.2]} 19. b4 {[%clk 0:01:54.2]} 19...
axb4 {[%clk 0:02:23.1]} 20. axb4 {[%clk 0:01:55]} 20... Nd7 {[%clk 0:02:23.4]}
21. Nf3 {[%clk 0:01:39.9]} 21... f4 {[%clk 0:02:19]} 22. Bxg7 {[%clk 0:01:40.2]}
22... Qxg7 {[%clk 0:02:15.7]} 23. Nd4 {[%clk 0:01:40.6]} 23... fxe3 {[%clk
0:02:10.1]} 24. fxe3 {[%clk 0:01:40.5]} 24... Bg4 {[%clk 0:02:08.1]} 25. Re1
{[%clk 0:01:39.2]} 25... Ne5 {[%clk 0:02:07.3]} 26. Bd5+ {[%clk 0:01:33.8]}
26... Kh8 {[%clk 0:02:07.7]} 27. b5 {[%clk 0:01:33.8]} 27... Bh3 {[%clk
0:02:00]} 28. Bg2 {[%clk 0:01:24]} 28... g4 {[%clk 0:01:56.8]} 29. Rf1 {[%clk
0:01:18.6]} 29... Qg8 {[%clk 0:01:35.7]} 30. Rxf8 {[%clk 0:01:00.2]} 30... Rxf8
{[%clk 0:01:36.6]} 31. Bd5 {[%clk 0:00:58.8]} 31... Qg5 {[%clk 0:01:35.3]} 32.
Qe2 {[%clk 0:00:56.4]} 32... Qf6 {[%clk 0:01:29.5]} 33. Re1 {[%clk 0:00:49.3]}
33... Nd3 {[%clk 0:00:54.9]} 34. Rd1 {[%clk 0:00:44.6]} 34... Nb2 {[%clk
0:00:43]} 35. Re1 {[%clk 0:00:42.6]} 35... Na4 {[%clk 0:00:40.4]} 36. Ne6 {[%clk
0:00:42.6]} 36... Nc3 {[%clk 0:00:39.1]} 37. Nf4 {[%clk 0:00:14.6]} 37... Nxe2+
{[%clk 0:00:39.1]} 38. Rxe2 {[%clk 0:00:14.9]} 38... Qa1+ {[%clk 0:00:38.8]} 0-1

[Event "Late-Titled-Tuesday-Blitz-January-23-2024"]
[Site "Chess.com"]
[Date "2024.01.23"]
[Round "2"]
[White "SpeedofLight0"]
[Black "ozates"]
[Result "1-0"]
[WhiteElo "2942"]
[BlackElo "2591"]
[TimeControl "180+1"]
[EndTime "14:17:09 PST"]
[Termination "SpeedofLight0 won by resignation"]

1. d4 {[%clk 0:03:00.9]} 1... Nf6 {[%clk 0:02:58.9]} 2. Nc3 {[%clk 0:03:00.5]}
2... d5 {[%clk 0:02:58.3]} 3. Bf4 {[%clk 0:03:01]} 3... e6 {[%clk 0:02:58.2]} 4.
e3 {[%clk 0:02:59.4]} 4... Bb4 {[%clk 0:02:57.8]} 5. Ne2 {[%clk 0:02:59.1]} 5...
O-O {[%clk 0:02:56.4]} 6. g4 {[%clk 0:02:59]} 6... c5 {[%clk 0:02:54.6]} 7. a3
{[%clk 0:02:57.4]} 7... Bxc3+ {[%clk 0:02:54.9]} 8. Nxc3 {[%clk 0:02:58.3]} 8...
cxd4 {[%clk 0:02:55]} 9. exd4 {[%clk 0:02:58.7]} 9... Nc6 {[%clk 0:02:53]} 10.
g5 {[%clk 0:02:57.9]} 10... Ne4 {[%clk 0:02:53.3]} 11. Nxe4 {[%clk 0:02:53.7]}
11... dxe4 {[%clk 0:02:53.6]} 12. c3 {[%clk 0:02:54.2]} 12... Qe7 {[%clk
0:02:26.4]} 13. Be3 {[%clk 0:02:40.6]} 13... b6 {[%clk 0:02:11.8]} 14. Bg2
{[%clk 0:02:38.2]} 14... Bb7 {[%clk 0:02:06.6]} 15. Bxe4 {[%clk 0:02:31]} 15...
Na5 {[%clk 0:02:06.7]} 16. Qc2 {[%clk 0:01:39.6]} 16... Bxe4 {[%clk 0:02:03.7]}
17. Qxe4 {[%clk 0:01:40.5]} 17... Rfd8 {[%clk 0:02:00.2]} 18. h4 {[%clk
0:01:34.3]} 18... Rac8 {[%clk 0:02:00]} 19. Rd1 {[%clk 0:01:27.5]} 19... Nc4
{[%clk 0:01:58.5]} 20. Bc1 {[%clk 0:01:27.7]} 20... Rd5 {[%clk 0:01:53.1]} 21.
h5 {[%clk 0:01:26.5]} 21... Rcd8 {[%clk 0:01:49.3]} 22. g6 {[%clk 0:01:18.9]}
22... f5 {[%clk 0:01:49.6]} 23. Qe2 {[%clk 0:01:13.1]} 23... Nd6 {[%clk
0:01:39.1]} 24. h6 {[%clk 0:01:12.2]} 24... hxg6 {[%clk 0:01:34.2]} 25. c4
{[%clk 0:00:58.5]} 25... Nxc4 {[%clk 0:01:29]} 26. Qxc4 {[%clk 0:00:59.4]} 26...
b5 {[%clk 0:01:20.9]} 27. Qe2 {[%clk 0:00:53.7]} 27... Rxd4 {[%clk 0:01:17.7]}
28. Rxd4 {[%clk 0:00:53.3]} 28... Rxd4 {[%clk 0:01:18.3]} 29. hxg7 {[%clk
0:00:49.2]} 29... Re4 {[%clk 0:01:18.2]} 30. Be3 {[%clk 0:00:49.1]} 30... Qxg7
{[%clk 0:00:54.6]} 31. Qd3 {[%clk 0:00:44.3]} 31... Qc7 {[%clk 0:00:51.5]} 32.
Kf1 {[%clk 0:00:39.6]} 32... Qc4 {[%clk 0:00:36.7]} 33. Qxc4 {[%clk 0:00:38.9]}
33... Rxc4 {[%clk 0:00:35.9]} 34. Bxa7 {[%clk 0:00:38.7]} 34... e5 {[%clk
0:00:33.1]} 35. Rh3 {[%clk 0:00:36.8]} 35... Rc1+ {[%clk 0:00:29.6]} 36. Kg2
{[%clk 0:00:36.4]} 36... Rc2 {[%clk 0:00:30.5]} 37. Rb3 {[%clk 0:00:36.4]} 37...
e4 {[%clk 0:00:27.7]} 38. Be3 {[%clk 0:00:35.6]} 38... Kg7 {[%clk 0:00:21.7]}
39. Rxb5 {[%clk 0:00:35.6]} 39... Kf6 {[%clk 0:00:22.2]} 40. Bf4 {[%clk
0:00:34.6]} 40... g5 {[%clk 0:00:20.2]} 41. Rb6+ {[%clk 0:00:34.4]} 1-0

[Event "Late-Titled-Tuesday-Blitz-January-23-2024"]
[Site "Chess.com"]
[Date "2024.01.23"]
[Round "2"]
[White "Fandorine"]
[Black "Doomfist26"]
[Result "1-0"]
[WhiteElo "2974"]
[BlackElo "2597"]
[TimeControl "180+1"]
[EndTime "14:17:10 PST"]
[Termination "Fandorine won by resignation"]

1. d4 {[%clk 0:03:00.9]} 1... Nf6 {[%clk 0:02:59.7]} 2. c4 {[%clk 0:03:01.5]}
2... g6 {[%clk 0:03:00.2]} 3. Nc3 {[%clk 0:03:01.3]} 3... Bg7 {[%clk 0:03:00.8]}
4. e4 {[%clk 0:03:01.9]} 4... d6 {[%clk 0:03:01.2]} 5. Be2 {[%clk 0:02:59]} 5...
O-O {[%clk 0:03:01.1]} 6. Nf3 {[%clk 0:02:59.6]} 6... e5 {[%clk 0:03:00.7]} 7.
O-O {[%clk 0:03:00.1]} 7... Bg4 {[%clk 0:02:59.7]} 8. d5 {[%clk 0:02:58.5]} 8...
a5 {[%clk 0:02:59.3]} 9. h3 {[%clk 0:02:58.9]} 9... Bxf3 {[%clk 0:02:54]} 10.
Bxf3 {[%clk 0:02:59.8]} 10... Na6 {[%clk 0:02:54.4]} 11. Bg5 {[%clk 0:02:58.8]}
11... h6 {[%clk 0:02:53.9]} 12. Be3 {[%clk 0:02:58.6]} 12... Nc5 {[%clk
0:02:53.9]} 13. a3 {[%clk 0:02:56.9]} 13... b6 {[%clk 0:02:10]} 14. Rb1 {[%clk
0:02:55.4]} 14... h5 {[%clk 0:02:05.8]} 15. b4 {[%clk 0:02:55.1]} 15... Ncd7
{[%clk 0:02:02.2]} 16. Qc2 {[%clk 0:02:46.8]} 16... Nh7 {[%clk 0:01:59.4]} 17.
Nb5 {[%clk 0:02:39.7]} 17... Bf6 {[%clk 0:01:48.9]} 18. c5 {[%clk 0:02:36.3]}
18... dxc5 {[%clk 0:01:38.5]} 19. bxc5 {[%clk 0:02:37.2]} 19... Bg5 {[%clk
0:01:38.7]} 20. d6 {[%clk 0:01:52.9]} 20... cxd6 {[%clk 0:01:34.8]} 21. cxd6
{[%clk 0:01:47.6]} 21... Bxe3 {[%clk 0:01:32.9]} 22. fxe3 {[%clk 0:01:48.5]}
22... Nc5 {[%clk 0:01:33.4]} 23. Be2 {[%clk 0:01:42.1]} 23... Ng5 {[%clk
0:01:28.8]} 24. Bc4 {[%clk 0:01:39.9]} 24... Rc8 {[%clk 0:01:18]} 25. Bd5 {[%clk
0:01:38.5]} 25... Ncxe4 {[%clk 0:01:15.2]} 26. Qd3 {[%clk 0:01:36.7]} 26... Ng3
{[%clk 0:01:01.5]} 27. Qxg6+ {[%clk 0:01:30.5]} 27... Kh8 {[%clk 0:00:58.6]} 28.
Qh6+ {[%clk 0:00:52.3]} 28... Nh7 {[%clk 0:00:41.8]} 29. Rxf7 {[%clk 0:00:52.5]}
29... Rxf7 {[%clk 0:00:41.1]} 30. Bxf7 {[%clk 0:00:53.4]} 30... Qg5 {[%clk
0:00:32.9]} 31. Qxg5 {[%clk 0:00:48.7]} 31... Nxg5 {[%clk 0:00:33.8]} 32. d7
{[%clk 0:00:46.6]} 32... Rd8 {[%clk 0:00:30.2]} 33. Be8 {[%clk 0:00:45.9]} 33...
N3e4 {[%clk 0:00:28.2]} 34. Na7 {[%clk 0:00:40.7]} 34... Nc5 {[%clk 0:00:20.9]}
35. Nc6 {[%clk 0:00:35.4]} 35... Rxd7 {[%clk 0:00:21]} 36. Bxd7 {[%clk
0:00:35.4]} 36... Nxd7 {[%clk 0:00:21.9]} 37. Rd1 {[%clk 0:00:33.8]} 37... Nc5
{[%clk 0:00:22.2]} 38. Nxe5 {[%clk 0:00:32.3]} 1-0

[Event "Late-Titled-Tuesday-Blitz-January-23-2024"]
[Site "Chess.com"]
[Date "2024.01.23"]
[Round "2"]
[White "R2D2PTY"]
[Black "rynos0411"]
[Result "0-1"]
[WhiteElo "2248"]
[BlackElo "2503"]
[TimeControl "180+1"]
[EndTime "14:17:11 PST"]
[Termination "rynos0411 won on time"]

1. e4 {[%clk 0:02:59.1]} 1... c5 {[%clk 0:03:00]} 2. Nc3 {[%clk 0:02:58.3]} 2...
d6 {[%clk 0:03:00.2]} 3. d4 {[%clk 0:02:58.3]} 3... cxd4 {[%clk 0:03:00.1]} 4.
Qxd4 {[%clk 0:02:59.2]} 4... Nf6 {[%clk 0:02:57.7]} 5. b3 {[%clk 0:02:58.9]}
5... Nc6 {[%clk 0:02:57.1]} 6. Qd2 {[%clk 0:02:59]} 6... g6 {[%clk 0:02:56.4]}
7. Bb2 {[%clk 0:02:59.3]} 7... Bg7 {[%clk 0:02:57.1]} 8. O-O-O {[%clk
0:02:54.7]} 8... O-O {[%clk 0:02:56.3]} 9. f3 {[%clk 0:02:53.9]} 9... Be6 {[%clk
0:02:53.3]} 10. Nge2 {[%clk 0:02:52.1]} 10... a6 {[%clk 0:02:49.9]} 11. Nf4
{[%clk 0:02:51.4]} 11... Bd7 {[%clk 0:02:47.9]} 12. h4 {[%clk 0:02:50.8]} 12...
h5 {[%clk 0:02:47.9]} 13. Ncd5 {[%clk 0:02:42.5]} 13... Nxd5 {[%clk 0:02:40.3]}
14. Nxd5 {[%clk 0:02:37.5]} 14... Ne5 {[%clk 0:02:25.7]} 15. Be2 {[%clk
0:02:31.5]} 15... Rc8 {[%clk 0:02:23.7]} 16. Kb1 {[%clk 0:02:26]} 16... Bc6
{[%clk 0:02:19.2]} 17. g4 {[%clk 0:02:21.9]} 17... hxg4 {[%clk 0:02:11.1]} 18.
fxg4 {[%clk 0:02:14]} 18... e6 {[%clk 0:02:11.1]} 19. Nc3 {[%clk 0:02:04.8]}
19... b5 {[%clk 0:02:10.8]} 20. Bd3 {[%clk 0:01:18.4]} 20... b4 {[%clk
0:02:05.7]} 21. Ne2 {[%clk 0:01:18.6]} 21... Nxg4 {[%clk 0:01:59.3]} 22. Bxg7
{[%clk 0:01:14.1]} 22... Kxg7 {[%clk 0:01:59.1]} 23. Qxb4 {[%clk 0:01:11.2]}
23... Qf6 {[%clk 0:01:53.6]} 24. Rdf1 {[%clk 0:01:06.6]} 24... Qe5 {[%clk
0:01:53.4]} 25. h5 {[%clk 0:01:00.3]} 25... a5 {[%clk 0:01:49.8]} 26. Qd2 {[%clk
0:00:59]} 26... Rh8 {[%clk 0:01:49.2]} 27. hxg6 {[%clk 0:00:56.1]} 27... fxg6
{[%clk 0:01:47.1]} 28. Rhg1 {[%clk 0:00:52]} 28... Nf6 {[%clk 0:01:40.6]} 29.
Nf4 {[%clk 0:00:47.2]} 29... Rh6 {[%clk 0:01:40.6]} 30. Qg2 {[%clk 0:00:27.6]}
30... Bxe4 {[%clk 0:01:29.4]} 31. Bxe4 {[%clk 0:00:18.3]} 31... Qxe4 {[%clk
0:01:30.3]} 32. Qxe4 {[%clk 0:00:14.1]} 32... Nxe4 {[%clk 0:01:31.2]} 33. Nxe6+
{[%clk 0:00:14.9]} 33... Kg8 {[%clk 0:01:31.7]} 34. Rf4 {[%clk 0:00:07.9]} 34...
Nc5 {[%clk 0:01:23.6]} 35. Rf6 {[%clk 0:00:06.1]} 35... Ne4 {[%clk 0:01:18.9]}
36. Rfxg6+ {[%clk 0:00:06]} 36... Rxg6 {[%clk 0:01:19]} 37. Rxg6+ {[%clk
0:00:06.9]} 37... Kf7 {[%clk 0:01:19.9]} 38. Rh6 {[%clk 0:00:07.6]} 38... a4
{[%clk 0:01:16.5]} 39. Nf4 {[%clk 0:00:06.5]} 39... a3 {[%clk 0:01:15.5]} 40. c4
{[%clk 0:00:03.3]} 40... Rg8 {[%clk 0:01:14.1]} 41. Rh7+ {[%clk 0:00:01.6]}
41... Kf6 {[%clk 0:01:13.2]} 42. Ra7 {[%clk 0:00:02.5]} 42... Rg1+ {[%clk
0:01:13]} 43. Kc2 {[%clk 0:00:03.2]} 43... Ke5 {[%clk 0:01:10]} 44. Nd3+ {[%clk
0:00:03.3]} 44... Kd4 {[%clk 0:01:10.2]} 45. Rxa3 {[%clk 0:00:04]} 45... Rg2+
{[%clk 0:01:10.7]} 46. Kd1 {[%clk 0:00:04]} 46... Kxd3 {[%clk 0:01:11.3]} 47.
Ra6 {[%clk 0:00:03.8]} 47... Nc3+ {[%clk 0:01:11.2]} 0-1

[Event "Late-Titled-Tuesday-Blitz-January-23-2024"]
[Site "Chess.com"]
[Date "2024.01.23"]
[Round "2"]
[White "jk13"]
[Black "GHANDEEVAM2003"]
[Result "0-1"]
[WhiteElo "2649"]
[BlackElo "3056"]
[TimeControl "180+1"]
[EndTime "14:17:13 PST"]
[Termination "GHANDEEVAM2003 won by resignation"]

1. e4 {[%clk 0:02:58.3]} 1... e6 {[%clk 0:03:00]} 2. d3 {[%clk 0:02:54.5]} 2...
b6 {[%clk 0:03:00]} 3. Nf3 {[%clk 0:02:54]} 3... Bb7 {[%clk 0:02:59.7]} 4. g3
{[%clk 0:02:54.6]} 4... c5 {[%clk 0:02:58.9]} 5. Bg2 {[%clk 0:02:54.4]} 5... Nc6
{[%clk 0:02:59.6]} 6. O-O {[%clk 0:02:54.7]} 6... Be7 {[%clk 0:02:59.8]} 7. c3
{[%clk 0:02:54.2]} 7... d5 {[%clk 0:02:56.7]} 8. Qe2 {[%clk 0:02:48.8]} 8... Nf6
{[%clk 0:02:55.1]} 9. e5 {[%clk 0:02:45.8]} 9... Nd7 {[%clk 0:02:55.5]} 10. h4
{[%clk 0:02:46.7]} 10... Qc7 {[%clk 0:02:53.3]} 11. Re1 {[%clk 0:02:47.3]} 11...
O-O-O {[%clk 0:02:51.7]} 12. a3 {[%clk 0:02:46.2]} 12... h6 {[%clk 0:02:50.5]}
13. b4 {[%clk 0:02:41.9]} 13... Rdg8 {[%clk 0:02:50.8]} 14. Nbd2 {[%clk
0:02:22.6]} 14... g5 {[%clk 0:02:50.9]} 15. hxg5 {[%clk 0:02:22.4]} 15... hxg5
{[%clk 0:02:51.8]} 16. g4 {[%clk 0:02:23]} 16... Nf8 {[%clk 0:02:49]} 17. c4
{[%clk 0:02:13.1]} 17... Ng6 {[%clk 0:02:47.2]} 18. Nf1 {[%clk 0:02:09.7]} 18...
Nf4 {[%clk 0:02:45.7]} 19. Bxf4 {[%clk 0:02:09.4]} 19... gxf4 {[%clk 0:02:46.6]}
20. N1h2 {[%clk 0:02:09.8]} 20... dxc4 {[%clk 0:02:41.8]} 21. dxc4 {[%clk
0:02:08]} 21... cxb4 {[%clk 0:02:42.4]} 22. axb4 {[%clk 0:02:08.7]} 22... Bxb4
{[%clk 0:02:43.3]} 23. Rec1 {[%clk 0:02:04.5]} 23... Bc5 {[%clk 0:02:42.5]} 24.
Ra2 {[%clk 0:01:59.3]} 24... a5 {[%clk 0:02:35.5]} 25. Rd2 {[%clk 0:01:59.2]}
25... Rd8 {[%clk 0:02:30.1]} 26. Rcd1 {[%clk 0:01:56]} 26... a4 {[%clk
0:02:30.2]} 27. g5 {[%clk 0:01:43.9]} 27... a3 {[%clk 0:02:27.4]} 28. Ng4 {[%clk
0:01:39.6]} 28... Nb4 {[%clk 0:02:27.3]} 29. Nf6 {[%clk 0:01:21.7]} 29... a2
{[%clk 0:02:25.7]} 30. Ra1 {[%clk 0:01:14.6]} 30... Rxd2 {[%clk 0:02:24.4]} 31.
Qxd2 {[%clk 0:01:15.5]} 31... Rd8 {[%clk 0:02:23.4]} 32. Qxf4 {[%clk 0:01:05.5]}
32... Bxf2+ {[%clk 0:02:17.7]} 33. Kf1 {[%clk 0:01:03.9]} 33... Nd3 {[%clk
0:02:17.8]} 34. Qd2 {[%clk 0:00:58.9]} 34... Qxc4 {[%clk 0:01:51.3]} 35. Qxa2
{[%clk 0:00:55]} 35... Qxa2 {[%clk 0:01:47]} 36. Rxa2 {[%clk 0:00:55]} 36... Bg3
{[%clk 0:01:45.6]} 37. Ng4 {[%clk 0:00:41.2]} 37... Nf4 {[%clk 0:01:44.2]} 38.
Ra1 {[%clk 0:00:36.4]} 38... Rd3 {[%clk 0:01:33.1]} 39. Ne1 {[%clk 0:00:29.9]}
39... Bxg2+ {[%clk 0:01:29.7]} 40. Nxg2 {[%clk 0:00:30.8]} 40... Rf3+ {[%clk
0:01:29.7]} 41. Kg1 {[%clk 0:00:29.3]} 41... Ne2+ {[%clk 0:01:30.2]} 42. Kh1
{[%clk 0:00:29.3]} 42... Bxe5 {[%clk 0:01:30.1]} 43. Ne1 {[%clk 0:00:12.7]}
43... Rh3+ {[%clk 0:01:27.1]} 44. Kg2 {[%clk 0:00:13.3]} 44... Rg3+ {[%clk
0:01:27.8]} 45. Kf2 {[%clk 0:00:13.3]} 45... Bxa1 {[%clk 0:01:28.7]} 46. Nh6
{[%clk 0:00:07.2]} 46... Rxg5 {[%clk 0:01:28.4]} 47. Kxe2 {[%clk 0:00:06.8]}
47... f5 {[%clk 0:01:29]} 48. Nf7 {[%clk 0:00:06.9]} 48... Rh5 {[%clk
0:01:29.3]} 49. Nf3 {[%clk 0:00:06.3]} 49... Kd7 {[%clk 0:01:29.3]} 50. Kd3
{[%clk 0:00:05.5]} 50... Ke7 {[%clk 0:01:28.9]} 51. N7e5 {[%clk 0:00:05.1]}
51... Bxe5 {[%clk 0:01:29.5]} 52. Nxe5 {[%clk 0:00:06]} 52... Kd6 {[%clk
0:01:30]} 53. Nc4+ {[%clk 0:00:06.2]} 0-1

[Event "Late-Titled-Tuesday-Blitz-January-23-2024"]
[Site "Chess.com"]
[Date "2024.01.23"]
[Round "2"]
[White "ChEsper99"]
[Black "emeli_chess"]
[Result "0-1"]
[WhiteElo "2118"]
[BlackElo "2463"]
[TimeControl "180+1"]
[EndTime "14:17:13 PST"]
[Termination "emeli_chess won by resignation"]

1. e4 {[%clk 0:02:53.3]} 1... c5 {[%clk 0:02:59.7]} 2. Nf3 {[%clk 0:02:40.5]}
2... d6 {[%clk 0:02:59.8]} 3. Bb5+ {[%clk 0:02:19.2]} 3... Nd7 {[%clk 0:02:59]}
4. c3 {[%clk 0:02:08.8]} 4... a6 {[%clk 0:02:57.3]} 5. Ba4 {[%clk 0:02:07.5]}
5... b5 {[%clk 0:02:55.3]} 6. Bc2 {[%clk 0:02:07.7]} 6... Bb7 {[%clk 0:02:52.6]}
7. O-O {[%clk 0:02:07]} 7... Ngf6 {[%clk 0:02:50.6]} 8. Re1 {[%clk 0:02:07.3]}
8... e6 {[%clk 0:02:50.4]} 9. d4 {[%clk 0:02:07.7]} 9... Be7 {[%clk 0:02:45.7]}
10. e5 {[%clk 0:02:01.2]} 10... Nd5 {[%clk 0:02:44.9]} 11. a4 {[%clk 0:01:58.3]}
11... Qc7 {[%clk 0:02:40.8]} 12. Na3 {[%clk 0:01:52.7]} 12... Qc6 {[%clk
0:02:21.6]} 13. Qe2 {[%clk 0:01:37.3]} 13... c4 {[%clk 0:01:43.8]} 14. Bd2
{[%clk 0:01:31.2]} 14... dxe5 {[%clk 0:01:34.3]} 15. dxe5 {[%clk 0:01:30]} 15...
Nc5 {[%clk 0:01:32.4]} 16. Nd4 {[%clk 0:01:25.1]} 16... Nf4 {[%clk 0:01:20.3]}
17. Nxc6 {[%clk 0:00:54.1]} 17... Nxe2+ {[%clk 0:01:19.9]} 18. Rxe2 {[%clk
0:00:55]} 18... Bxc6 {[%clk 0:01:20.2]} 19. axb5 {[%clk 0:00:48]} 19... axb5
{[%clk 0:01:19.7]} 20. Rd1 {[%clk 0:00:28.4]} 20... O-O {[%clk 0:01:19.2]} 21.
Be3 {[%clk 0:00:27.9]} 21... Rfd8 {[%clk 0:01:18.2]} 22. Red2 {[%clk 0:00:27.7]}
22... Rxd2 {[%clk 0:01:13.2]} 23. Rxd2 {[%clk 0:00:28.6]} 23... Kf8 {[%clk
0:01:11.7]} 24. f3 {[%clk 0:00:28.4]} 24... Ke8 {[%clk 0:01:10.9]} 25. Kf2
{[%clk 0:00:28.1]} 25... Rd8 {[%clk 0:01:09]} 26. Rxd8+ {[%clk 0:00:27.7]} 26...
Kxd8 {[%clk 0:01:09]} 27. Ke2 {[%clk 0:00:23.1]} 27... g6 {[%clk 0:01:05.5]} 28.
Nb1 {[%clk 0:00:20.5]} 28... Kc7 {[%clk 0:00:59.7]} 29. Nd2 {[%clk 0:00:20.9]}
29... Bd5 {[%clk 0:00:57]} 30. Bxc5 {[%clk 0:00:20.3]} 30... Bxc5 {[%clk
0:00:56.4]} 31. Be4 {[%clk 0:00:20.8]} 31... Kc6 {[%clk 0:00:55.7]} 32. Bxd5+
{[%clk 0:00:20.6]} 32... Kxd5 {[%clk 0:00:55.7]} 33. Ne4 {[%clk 0:00:19.7]}
33... Be7 {[%clk 0:00:54.7]} 34. Ke3 {[%clk 0:00:12.7]} 34... Kxe5 {[%clk
0:00:53]} 35. f4+ {[%clk 0:00:12.7]} 35... Kd5 {[%clk 0:00:51.6]} 36. g4 {[%clk
0:00:12.3]} 36... f5 {[%clk 0:00:48.2]} 37. gxf5 {[%clk 0:00:11.9]} 37... exf5
{[%clk 0:00:45.3]} 38. Nf2 {[%clk 0:00:10.4]} 38... Bc5+ {[%clk 0:00:44.8]} 0-1

[Event "Late-Titled-Tuesday-Blitz-January-23-2024"]
[Site "Chess.com"]
[Date "2024.01.23"]
[Round "2"]
[White "stregachess"]
[Black "tgpgoat"]
[Result "1-0"]
[WhiteElo "2096"]
[BlackElo "2440"]
[TimeControl "180+1"]
[EndTime "14:17:18 PST"]
[Termination "stregachess won by resignation"]

1. d4 {[%clk 0:03:00.9]} 1... Nf6 {[%clk 0:02:56.4]} 2. Nf3 {[%clk 0:02:58.5]}
2... g6 {[%clk 0:02:55.5]} 3. Bf4 {[%clk 0:02:58.5]} 3... Bg7 {[%clk 0:02:52.3]}
4. e3 {[%clk 0:02:58.7]} 4... O-O {[%clk 0:02:52]} 5. Be2 {[%clk 0:02:55.8]}
5... d6 {[%clk 0:02:52.2]} 6. h3 {[%clk 0:02:55]} 6... c5 {[%clk 0:02:51.7]} 7.
c4 {[%clk 0:02:50.1]} 7... cxd4 {[%clk 0:02:51.6]} 8. exd4 {[%clk 0:02:50]} 8...
Nc6 {[%clk 0:02:51.3]} 9. Nc3 {[%clk 0:02:49.8]} 9... Re8 {[%clk 0:02:45.9]} 10.
O-O {[%clk 0:02:49.1]} 10... Nd7 {[%clk 0:02:42.8]} 11. Rc1 {[%clk 0:02:42.3]}
11... e5 {[%clk 0:02:41.8]} 12. dxe5 {[%clk 0:02:10.9]} 12... dxe5 {[%clk
0:02:42.7]} 13. Bh2 {[%clk 0:02:01]} 13... Nc5 {[%clk 0:02:34.6]} 14. Qxd8
{[%clk 0:01:56.4]} 14... Rxd8 {[%clk 0:02:34.1]} 15. Rfd1 {[%clk 0:01:41.2]}
15... Be6 {[%clk 0:02:30.5]} 16. Ng5 {[%clk 0:01:37.5]} 16... Nd4 {[%clk
0:02:21.7]} 17. Bf1 {[%clk 0:01:31.6]} 17... Bf5 {[%clk 0:02:13.9]} 18. f3
{[%clk 0:01:30.3]} 18... Bh6 {[%clk 0:02:11.7]} 19. Nge4 {[%clk 0:00:54.3]}
19... Bxc1 {[%clk 0:02:05.3]} 20. Rxc1 {[%clk 0:00:51]} 20... Nxe4 {[%clk
0:02:05]} 21. fxe4 {[%clk 0:00:48.5]} 21... Be6 {[%clk 0:02:00.1]} 22. Bxe5
{[%clk 0:00:48.2]} 22... Nc6 {[%clk 0:02:00.6]} 23. Bf6 {[%clk 0:00:47.3]} 23...
Rd2 {[%clk 0:01:53.2]} 24. Nd5 {[%clk 0:00:46.7]} 24... Bxd5 {[%clk 0:01:42.3]}
25. cxd5 {[%clk 0:00:44.3]} 25... Nb4 {[%clk 0:01:36.1]} 26. Rc7 {[%clk
0:00:42.6]} 26... Nxa2 {[%clk 0:01:28]} 27. Bc4 {[%clk 0:00:36.3]} 27... Rd1+
{[%clk 0:01:10.1]} 28. Kh2 {[%clk 0:00:36]} 28... Nb4 {[%clk 0:00:53.9]} 29. d6
{[%clk 0:00:33.3]} 29... Rf8 {[%clk 0:00:49.4]} 30. Be7 {[%clk 0:00:31.8]} 30...
b5 {[%clk 0:00:35]} 31. Bxb5 {[%clk 0:00:28]} 31... Nd3 {[%clk 0:00:17.7]} 32.
d7 {[%clk 0:00:21.5]} 32... Ne5 {[%clk 0:00:17.1]} 33. Bxf8 {[%clk 0:00:20.1]}
33... Kxf8 {[%clk 0:00:18]} 34. Rc8+ {[%clk 0:00:19.7]} 34... Ke7 {[%clk
0:00:14.3]} 35. Re8+ {[%clk 0:00:19.7]} 35... Kf6 {[%clk 0:00:15.2]} 36. d8=Q+
{[%clk 0:00:19.9]} 36... Rxd8 {[%clk 0:00:15.3]} 37. Rxd8 {[%clk 0:00:20.3]} 1-0